[Event "FIDE Womens Grand Swiss 2021"]
[Site "Riga"]
[Date "2021.11.07"]
[Round "11.7"]
[White "Vantika Agrawal"]
[Black "Pogonina, Natalija"]
[Result "1/2-1/2"]
[ECO "E15"]
[WhiteElo "2322"]
[BlackElo "2467"]
[Annotator "RC"]
[PlyCount "94"]
[EventDate "2021.10.27"]
[EventType "swiss"]
[EventCountry "LAT"]
[Tiebreak "Cut1 Buchholz+Sonneborn-Berger (Swiss)"]
[SourceTitle "playchess.com"]
[Source "ChessBase"]
[SourceQuality "1"]
[TimeControl "40/6000+30:20/3000+30:900+30"]

1. d4 {[%emt 0:10:57]} Nf6 {[%emt 0:10:05]} 2. c4 {[%emt 0:00:04]} e6 {[%emt 0:
00:12]} 3. Nf3 {[%emt 0:00:18]} b6 {[%emt 0:00:36]} 4. g3 {[%emt 0:00:35]} Ba6
{[%emt 0:00:20]} 5. b3 {[%emt 0:00:35]} Bb4+ {[%emt 0:00:50]} 6. Bd2 {[%emt 0:
00:12]} Be7 {[%emt 0:00:21]} 7. Bg2 {[%emt 0:00:28]} c6 {[%emt 0:02:19]} 8. Bc3
{[%emt 0:06:09]} d5 {[%emt 0:10:00]} 9. Ne5 {[%emt 0:05:55]} Nfd7 {[%emt 0:10:
41]} 10. Nxd7 {[%emt 0:01:24]} Nxd7 {[%emt 0:00:11]} 11. Nd2 {[%emt 0:01:43]}
O-O {[%emt 0:03:32]} 12. O-O {[%emt 0:00:08]} f5 {[%emt 0:05:44]} 13. e3 {
[%emt 0:07:26]} Nf6 {[%emt 0:02:46]} 14. Bb2 {[%emt 0:01:49]} b5 {[%emt 0:06:
57]} 15. c5 {[%emt 0:08:01]} b4 {[%emt 0:09:24]} 16. Re1 {[%emt 0:00:14]} Bb5 {
[%emt 0:00:15]} 17. Nf3 {[%emt 0:07:02]} Ne4 {[%emt 0:04:02]} 18. Ne5 {[%emt 0:
13:47]} Bf6 {[%emt 0:01:39]} 19. Nd3 {[%emt 0:01:29]} Bxd3 {[%emt 0:03:11]} 20.
Qxd3 {[%emt 0:00:05]} Qc7 {[%emt 0:03:57]} 21. Qc2 {[%emt 0:12:09]} e5 {
[%emt 0:04:06]} 22. f3 {[%emt 0:02:18]} Nc3 {[%emt 0:01:21]} 23. Bxc3 {[%emt 0:
01:19]} bxc3 {[%emt 0:00:05]} 24. Qxc3 {[%emt 0:00:25]} f4 {[%emt 0:03:16]} 25.
exf4 {[%emt 0:05:48]} exf4 {[%emt 0:00:13]} 26. g4 {[%emt 0:08:49]} Rae8 {
[%emt 0:02:20]} 27. b4 {[%emt 0:03:53]} g6 {[%emt 0:01:48]} 28. Kh1 {[%emt 0:
05:39]} Qg7 {[%emt 0:04:03]} 29. Rxe8 {[%emt 0:00:12]} Rxe8 {[%emt 0:00:04]}
30. Re1 {[%emt 0:00:06]} Kf8 {[%emt 0:12:58]} 31. Qd2 {[%emt 0:01:43]} g5 {
[%emt 0:00:39]} 32. Rxe8+ {[%emt 0:00:43]} Kxe8 {[%emt 0:00:04]} 33. Qe2+ {
[%emt 0:00:47]} Qe7 {[%emt 0:00:26]} 34. Bf1 {[%emt 0:01:38]} Qxe2 {[%emt 0:04:
39]} 35. Bxe2 {[%emt 0:00:05]} Bxd4 {[%emt 0:00:03]} 36. Kg2 {[%emt 0:00:53]}
Kd7 {[%emt 0:01:52]} 37. Kf1 {[%emt 0:00:53]} h6 {[%emt 0:01:04]} 38. Ba6 {
[%emt 0:00:51]} Bc3 {[%emt 0:00:45]} 39. b5 {[%emt 0:00:11]} Kc7 {[%emt 0:00:
21]} 40. Ke2 {[%emt 0:00:46]} Bd4 {[%emt 0:00:42]} 41. Kd3 {[%emt 0:23:47]}
Bxc5 {[%emt 0:20:05]} 42. bxc6 {[%emt 0:00:03]} Kxc6 {[%emt 0:00:04]} 43. Bc8 {
[%emt 0:00:40]} Be3 {[%emt 0:01:48]} 44. Be6 {[%emt 0:00:27]} Kc5 {[%emt 0:00:
03]} 45. Bf7 {[%emt 0:00:08]} d4 {[%emt 0:00:11]} 46. h3 {[%emt 0:00:32]} Kb4 {
[%emt 0:00:05]} 47. Kc2 {[%emt 0:00:22]} a5 {[%emt 0:00:19]} 1/2-1/2

[Event "FIDE Womens Grand Swiss 2021"]
[Site "Riga"]
[Date "2021.11.07"]
[Round "11.8"]
[White "Zawadzka, Jolanta"]
[Black "Osmak, Iulija"]
[Result "1-0"]
[ECO "B11"]
[WhiteElo "2428"]
[BlackElo "2423"]
[Annotator "NA RC"]
[PlyCount "111"]
[EventDate "2021.10.27"]
[EventType "swiss"]
[EventCountry "LAT"]
[Tiebreak "Cut1 Buchholz+Sonneborn-Berger (Swiss)"]
[SourceTitle "playchess.com"]
[Source "ChessBase"]
[SourceQuality "1"]
[TimeControl "40/6000+30:20/3000+30:900+30"]

1. e4 {[%emt 0:10:04]} c6 {[%emt 0:11:55]} 2. Nc3 {[%emt 0:00:12]} d5 {[%emt 0:
00:15]} 3. Nf3 {[%emt 0:00:05]} Bg4 {[%emt 0:00:20]} 4. h3 {[%emt 0:00:06]}
Bxf3 {[%emt 0:00:21]} 5. Qxf3 {[%emt 0:00:06]} e6 {[%emt 0:00:12]} 6. d4 {
[%emt 0:00:14]} Nf6 {[%emt 0:00:33]} 7. Be2 {[%emt 0:00:16]} dxe4 {[%emt 0:00:
42]} 8. Qe3 {[%emt 0:00:21]} Nd5 {[%emt 0:06:28]} 9. Qxe4 {[%emt 0:02:23]} Be7
{[%emt 0:00:13]} 10. O-O {[%emt 0:04:07]} O-O {[%emt 0:05:02]} 11. Rd1 {
[%emt 0:12:00]} Bg5 {[%emt 0:10:09]} 12. f4 {[%emt 0:04:08]} Bf6 {[%emt 0:00:
14]} 13. Bd3 {[%emt 0:04:03]} g6 {[%emt 0:00:27]} 14. Ne2 {[%emt 0:02:17]} Nd7
{[%emt 0:11:50]} 15. a3 {[%emt 0:12:16]} b5 {[%emt 0:07:07]} 16. Kh1 {[%emt 0:
04:58]} Qb6 {[%emt 0:07:29]} 17. Qf3 {[%emt 0:02:00]} Bg7 {[%emt 0:04:40]} 18.
c3 {[%emt 0:09:30]} Rad8 {[%emt 0:03:49]} 19. b3 {[%emt 0:06:16]} c5 {[%emt 0:
04:08]} 20. c4 {[%emt 0:01:14]} Nc7 {[%emt 0:04:13]} 21. Bb2 {[%emt 0:02:03]}
cxd4 {[%emt 0:00:46]} 22. cxb5 {[%emt 0:02:49]} Nc5 {[%emt 0:09:49]} 23. a4 {
[%emt 0:11:07]} Nxb3 {[%emt 0:01:37]} 24. Rab1 {[%emt 0:00:04]} Na5 {[%emt 0:
05:14]} 25. Rbc1 {[%emt 0:06:45]} Rd7 {[%emt 0:06:11]} 26. Ba3 {[%emt 0:00:14]}
Rfd8 {[%emt 0:00:08]} 27. Bc5 {[%emt 0:00:20]} Qb8 {[%emt 0:00:08]} 28. Be4 {
[%emt 0:05:16]} a6 {[%emt 0:02:07]} 29. Bb4 {[%emt 0:01:23]} Qb6 {[%emt 0:00:
51]} 30. Bc5 {[%emt 0:01:07]} Qb8 {[%emt 0:00:07]} 31. Bb4 {[%emt 0:00:34]} Qb6
{[%emt 0:01:03]} 32. Bc6 {[%emt 0:01:28]} Nxc6 {[%emt 0:00:30]} 33. Rxc6 {
[%emt 0:00:05]} Qb8 {[%emt 0:02:53]} 34. Ba5 {[%emt 0:00:23]} d3 {[%emt 0:01:
37]} 35. Ng3 {[%emt 0:02:14]} axb5 {[%emt 0:00:20]} 36. axb5 {[%emt 0:00:12]}
Nxb5 {[%emt 0:03:19]} 37. Rb6 {[%emt 0:00:42]} Qa7 {[%emt 0:01:31]} 38. Rxb5 {
[%emt 0:00:04]} Rb8 {[%emt 0:00:15]} 39. Qc6 {[%emt 0:01:53]} Rxb5 {[%emt 0:00:
41]} 40. Qxb5 {[%emt 0:00:04]} h5 {[%emt 0:00:49]} 41. Ne4 {[%emt 0:52:18]} Rd5
{[%emt 0:27:09]} 42. Qe8+ {[%emt 0:00:00]} Kh7 {[%emt 0:00:03]} 43. Bd2 {
[%emt 0:00:00]} Bd4 {[%emt 0:02:13]} 44. Bb4 {[%emt 0:00:00]} Rf5 {[%emt 0:09:
58]} 45. Ng5+ {[%emt 0:00:00]} Kh6 {[%emt 0:00:42]} 46. Be7 {[%emt 0:00:00]}
Rxf4 {[%emt 0:06:15]} 47. Nxf7+ {[%emt 0:00:00]} Kh7 {[%emt 0:00:13]} 48. Ng5+
{[%emt 0:00:00]} Kh6 {[%emt 0:00:11]} 49. Nxe6 {[%emt 0:00:00]} Rf5 {[%emt 0:
01:44]} 50. h4 {[%emt 0:00:00]} d2 {[%emt 0:02:01]} 51. Bg5+ {[%emt 0:00:00]}
Kh7 {[%emt 0:00:07]} 52. Nf8+ {[%emt 0:00:00]} Rxf8 {[%emt 0:00:37]} 53. Qxf8 {
[%emt 0:00:00]} Qa4 {[%emt 0:00:35]} 54. Qh6+ {[%emt 0:00:00]} Kg8 {[%emt 0:00:
11]} 55. Qxg6+ {[%emt 0:00:00]} Bg7 {[%emt 0:00:03]} 56. Qxh5 {[%emt 0:00:00]}
1-0

[Event "FIDE Womens Grand Swiss 2021"]
[Site "Riga"]
[Date "2021.11.07"]
[Round "11.9"]
[White "Dzagnidze, Nana"]
[Black "Stefanova, Antoaneta"]
[Result "1/2-1/2"]
[ECO "D31"]
[WhiteElo "2524"]
[BlackElo "2475"]
[Annotator "RC"]
[PlyCount "195"]
[EventDate "2021.10.27"]
[EventType "swiss"]
[EventCountry "LAT"]
[Tiebreak "Cut1 Buchholz+Sonneborn-Berger (Swiss)"]
[SourceTitle "playchess.com"]
[Source "ChessBase"]
[SourceQuality "1"]
[TimeControl "40/6000+30:20/3000+30:900+30"]

1. d4 {[%emt 0:10:04]} d5 {[%emt 0:10:04]} 2. c4 {[%emt 0:00:05]} c6 {[%emt 0:
00:03]} 3. Nc3 {[%emt 0:00:05]} Nf6 {[%emt 0:00:10]} 4. e3 {[%emt 0:00:06]} e6
{[%emt 0:12:00]} 5. b3 {[%emt 0:00:31]} Bb4 {[%emt 0:04:15]} 6. Bb2 {[%emt 0:
00:10]} Ne4 {[%emt 0:02:25]} 7. Qc2 {[%emt 0:00:36]} f5 {[%emt 0:02:00]} 8. Bd3
{[%emt 0:20:15]} Nd7 {[%emt 0:05:50]} 9. Nge2 {[%emt 0:05:01]} Qh4 {[%emt 0:06:
40]} 10. Nf4 {[%emt 0:06:26]} Qe7 {[%emt 0:24:28]} 11. O-O {[%emt 0:04:36]} Bd6
{[%emt 0:08:09]} 12. f3 {[%emt 0:25:14]} Nxc3 {[%emt 0:01:56]} 13. Bxc3 {
[%emt 0:00:02]} O-O {[%emt 0:03:13]} 14. Rad1 {[%emt 0:06:57]} Nf6 {[%emt 0:01:
58]} 15. Kh1 {[%emt 0:03:22]} b6 {[%emt 0:02:46]} 16. Be1 {[%emt 0:01:33]} Bb7
{[%emt 0:05:08]} 17. Bg3 {[%emt 0:00:21]} Rae8 {[%emt 0:01:45]} 18. Ne2 {
[%emt 0:05:16]} Bxg3 {[%emt 0:00:43]} 19. Nxg3 {[%emt 0:00:02]} c5 {[%emt 0:00:
53]} 20. Ne2 {[%emt 0:00:59]} Kh8 {[%emt 0:07:50]} 21. Nc3 {[%emt 0:05:33]} Rc8
{[%emt 0:00:46]} 22. Qb2 {[%emt 0:02:56]} Rfd8 {[%emt 0:01:32]} 23. Rfe1 {
[%emt 0:00:24]} Qf7 {[%emt 0:01:25]} 24. dxc5 {[%emt 0:00:52]} Rxc5 {[%emt 0:
00:29]} 25. cxd5 {[%emt 0:01:17]} Nxd5 {[%emt 0:00:39]} 26. Bc4 {[%emt 0:00:34]
} Qe7 {[%emt 0:00:46]} 27. Bxd5 {[%emt 0:01:35]} Bxd5 {[%emt 0:03:01]} 28. Ne2
{[%emt 0:02:00]} Rdc8 {[%emt 0:00:43]} 29. Rd2 {[%emt 0:00:11]} Bc6 {[%emt 0:
01:23]} 30. Red1 {[%emt 0:01:56]} Be8 {[%emt 0:00:12]} 31. Kg1 {[%emt 0:02:02]}
h6 {[%emt 0:00:36]} 32. Qd4 {[%emt 0:03:03]} e5 {[%emt 0:01:19]} 33. Qb4 {
[%emt 0:00:07]} Qg5 {[%emt 0:00:36]} 34. Kf2 {[%emt 0:00:24]} Bb5 {[%emt 0:00:
35]} 35. Ng3 {[%emt 0:01:44]} a5 {[%emt 0:00:46]} 36. Qa3 {[%emt 0:00:12]} Rc3
{[%emt 0:00:22]} 37. Nf1 {[%emt 0:01:43]} Bxf1 {[%emt 0:00:07]} 38. Kxf1 {
[%emt 0:00:01]} Qxe3 {[%emt 0:00:27]} 39. Qd6 {[%emt 0:00:48]} Rc1 {[%emt 0:00:
30]} 40. Rxc1 {[%emt 0:00:44]} Rxc1+ {[%emt 0:00:07]} 41. Rd1 {[%emt 0:50:00]}
Kh7 {[%emt 0:26:19]} 42. Qd7 {[%emt 0:00:00]} Qf4 {[%emt 0:20:11]} 43. Rxc1 {
[%emt 0:00:00]} Qxc1+ {[%emt 0:00:02]} 44. Kf2 {[%emt 0:00:00]} Qc5+ {[%emt 0:
03:04]} 45. Kg3 {[%emt 0:00:00]} e4 {[%emt 0:00:17]} 46. Qe6 {[%emt 0:00:00]}
exf3 {[%emt 0:01:50]} 47. gxf3 {[%emt 0:00:00]} Qg1+ {[%emt 0:00:37]} 48. Kh3 {
[%emt 0:00:00]} Qg6 {[%emt 0:00:22]} 49. Qe5 {[%emt 0:00:00]} Qf7 {[%emt 0:01:
33]} 50. Kg3 {[%emt 0:00:00]} Qd7 {[%emt 0:00:07]} 51. h4 {[%emt 0:00:00]} Kg6
{[%emt 0:00:16]} 52. Qb8 {[%emt 0:00:10]} Qe6 {[%emt 0:00:20]} 53. Qc7 {
[%emt 0:00:11]} Qf6 {[%emt 0:00:30]} 54. Qc4 {[%emt 0:04:41]} Kh5 {[%emt 0:00:
34]} 55. Qf4 {[%emt 0:00:36]} g5 {[%emt 0:00:39]} 56. Qc4 {[%emt 0:01:43]} f4+
{[%emt 0:00:48]} 57. Kg2 {[%emt 0:00:38]} Kxh4 {[%emt 0:00:31]} 58. Qc1 {
[%emt 0:00:23]} g4 {[%emt 0:00:45]} 59. fxg4 {[%emt 0:00:08]} Kxg4 {[%emt 0:00:
29]} 60. Qc8+ {[%emt 0:00:22]} Qf5 {[%emt 0:01:07]} 61. Qg8+ {[%emt 0:16:09]}
Kh4 {[%emt 0:15:32]} 62. Kf3 {[%emt 0:00:57]} Qg5 {[%emt 0:00:10]} 63. Qf8 {
[%emt 0:00:13]} Qg3+ {[%emt 0:00:26]} 64. Ke2 {[%emt 0:00:14]} f3+ {[%emt 0:00:
44]} 65. Ke3 {[%emt 0:00:04]} h5 {[%emt 0:01:11]} 66. Qf7 {[%emt 0:00:05]} Qe1+
{[%emt 0:00:33]} 67. Kf4 {[%emt 0:00:04]} Qg3+ {[%emt 0:00:33]} 68. Ke3 {
[%emt 0:00:04]} Qe1+ {[%emt 0:00:30]} 69. Kf4 {[%emt 0:00:03]} f2 {[%emt 0:00:
11]} 70. Qf6+ {[%emt 0:00:04]} Kh3 {[%emt 0:00:16]} 71. Qf5+ {[%emt 0:00:02]}
Kg2 {[%emt 0:00:12]} 72. Qd5+ {[%emt 0:00:09]} Kg1 {[%emt 0:00:18]} 73. Qg5+ {
[%emt 0:00:48]} Kf1 {[%emt 0:00:13]} 74. Qxh5 {[%emt 0:00:04]} Qd2+ {[%emt 0:
01:12]} 75. Kg3 {[%emt 0:00:18]} Qe3+ {[%emt 0:00:29]} 76. Kh2 {[%emt 0:00:02]}
Ke1 {[%emt 0:00:12]} 77. Qh4 {[%emt 0:00:05]} Qf3 {[%emt 0:00:45]} 78. b4 {
[%emt 0:00:58]} Ke2 {[%emt 0:00:43]} 79. Qc4+ {[%emt 0:00:18]} Qd3 {[%emt 0:00:
10]} 80. Qg4+ {[%emt 0:00:10]} Ke1 {[%emt 0:00:39]} 81. Qh4 {[%emt 0:00:08]}
Qd6+ {[%emt 0:00:43]} 82. Kg2 {[%emt 0:00:07]} Qd5+ {[%emt 0:00:11]} 83. Kh2 {
[%emt 0:00:03]} a4 {[%emt 0:00:48]} 84. b5 {[%emt 0:00:09]} Qxb5 {[%emt 0:00:
34]} 85. Qe4+ {[%emt 0:00:13]} Qe2 {[%emt 0:00:56]} 86. Qb1+ {[%emt 0:00:15]}
Qd1 {[%emt 0:00:23]} 87. Qb4+ {[%emt 0:00:54]} Qd2 {[%emt 0:00:18]} 88. Qe4+ {
[%emt 0:00:14]} Kd1 {[%emt 0:00:35]} 89. Qxa4+ {[%emt 0:01:09]} Qc2 {[%emt 0:
00:24]} 90. Qd4+ {[%emt 0:00:04]} Ke2 {[%emt 0:00:22]} 91. Qe5+ {[%emt 0:00:18]
} Kf3 {[%emt 0:00:26]} 92. Qg3+ {[%emt 0:00:31]} Ke2 {[%emt 0:00:11]} 93. Qe5+
{[%emt 0:00:01]} Kd3 {[%emt 0:00:31]} 94. Kg2 {[%emt 0:04:03]} Qxa2 {[%emt 0:
00:53]} 95. Qb5+ {[%emt 0:00:11]} Kd2 {[%emt 0:00:56]} 96. Qxb6 {[%emt 0:00:20]
} Qd5+ {[%emt 0:00:34]} 97. Kxf2 {[%emt 0:00:06]} Qf5+ {[%emt 0:00:04]} 98. Kg2
{[%emt 0:00:10]} 1/2-1/2

[Event "FIDE Womens Grand Swiss 2021"]
[Site "Riga"]
[Date "2021.11.07"]
[Round "11.10"]
[White "Saduakassova, Dinara"]
[Black "Cramling, Pia"]
[Result "0-1"]
[ECO "D02"]
[WhiteElo "2491"]
[BlackElo "2447"]
[Annotator "RC"]
[PlyCount "154"]
[EventDate "2021.10.27"]
[EventType "swiss"]
[EventCountry "LAT"]
[Tiebreak "Cut1 Buchholz+Sonneborn-Berger (Swiss)"]
[SourceTitle "playchess.com"]
[Source "ChessBase"]
[SourceQuality "1"]
[TimeControl "40/6000+30:20/3000+30:900+30"]

1. d4 {[%emt 0:10:48]} Nf6 {[%emt 0:10:07]} 2. Nf3 {[%emt 0:00:05]} d5 {
[%emt 0:00:39]} 3. Bf4 {[%emt 0:00:14]} c5 {[%emt 0:00:36]} 4. e3 {[%emt 0:00:
08]} Nc6 {[%emt 0:00:11]} 5. Nbd2 {[%emt 0:00:18]} cxd4 {[%emt 0:02:57]} 6.
exd4 {[%emt 0:00:05]} Qb6 {[%emt 0:01:19]} 7. Nb3 {[%emt 0:04:39]} Bf5 {
[%emt 0:01:47]} 8. c3 {[%emt 0:06:59]} e6 {[%emt 0:00:27]} 9. a4 {[%emt 0:05:
24]} a6 {[%emt 0:01:26]} 10. Be2 {[%emt 0:04:00]} Be7 {[%emt 0:01:32]} 11. O-O
{[%emt 0:06:53]} O-O {[%emt 0:04:33]} 12. Nh4 {[%emt 0:11:03]} Be4 {[%emt 0:00:
40]} 13. f3 {[%emt 0:00:55]} Bg6 {[%emt 0:00:08]} 14. Nxg6 {[%emt 0:01:09]}
hxg6 {[%emt 0:00:10]} 15. a5 {[%emt 0:02:33]} Qd8 {[%emt 0:01:27]} 16. Qd2 {
[%emt 0:00:57]} Ne8 {[%emt 0:04:42]} 17. Bd3 {[%emt 0:02:47]} Nd6 {[%emt 0:10:
49]} 18. Qe2 {[%emt 0:05:12]} Re8 {[%emt 0:08:10]} 19. Nc5 {[%emt 0:07:00]} e5
{[%emt 0:13:40]} 20. dxe5 {[%emt 0:14:22]} Nc4 {[%emt 0:01:29]} 21. Nb3 {
[%emt 0:04:29]} N6xe5 {[%emt 0:03:00]} 22. Bxe5 {[%emt 0:04:21]} Nxe5 {[%emt 0:
00:09]} 23. f4 {[%emt 0:00:13]} Nc4 {[%emt 0:06:56]} 24. Qf2 {[%emt 0:02:40]}
Bf6 {[%emt 0:01:00]} 25. f5 {[%emt 0:07:20]} g5 {[%emt 0:02:33]} 26. Ra4 {
[%emt 0:00:22]} Rc8 {[%emt 0:03:01]} 27. Rd1 {[%emt 0:02:33]} Qe7 {[%emt 0:05:
29]} 28. Bf1 {[%emt 0:02:10]} Qe5 {[%emt 0:08:01]} 29. Nd4 {[%emt 0:02:25]} Rc7
{[%emt 0:04:21]} 30. Raa1 {[%emt 0:01:22]} Qe3 {[%emt 0:02:26]} 31. Bxc4 {
[%emt 0:00:29]} dxc4 {[%emt 0:01:03]} 32. Re1 {[%emt 0:01:24]} Qxf2+ {[%emt 0:
00:12]} 33. Kxf2 {[%emt 0:00:03]} Rxe1 {[%emt 0:03:11]} 34. Kxe1 {[%emt 0:01:
19]} Bxd4 {[%emt 0:02:26]} 35. cxd4 {[%emt 0:00:03]} Rd7 {[%emt 0:00:07]} 36.
Ra4 {[%emt 0:00:43]} Rxd4 {[%emt 0:00:08]} 37. Rb4 {[%emt 0:00:55]} Rf4 {
[%emt 0:00:50]} 38. Rxb7 {[%emt 0:00:17]} Rxf5 {[%emt 0:00:23]} 39. Rc7 {
[%emt 0:00:03]} Rxa5 {[%emt 0:00:22]} 40. Rxc4 {[%emt 0:00:03]} Rf5 {[%emt 0:
04:29]} 41. Ra4 {[%emt 0:22:50]} Rf6 {[%emt 0:33:05]} 42. Ke2 {[%emt 0:02:01]}
Kh7 {[%emt 0:01:00]} 43. Ke3 {[%emt 0:03:07]} Kg6 {[%emt 0:01:00]} 44. Rb4 {
[%emt 0:01:49]} Kh5 {[%emt 0:04:17]} 45. Rb7 {[%emt 0:02:59]} g4 {[%emt 0:01:
54]} 46. Rb4 {[%emt 0:08:49]} g6 {[%emt 0:00:24]} 47. Rc4 {[%emt 0:03:42]} Kg5
{[%emt 0:00:54]} 48. Ke2 {[%emt 0:03:18]} Rf4 {[%emt 0:02:28]} 49. Rc6 {
[%emt 0:00:50]} a5 {[%emt 0:00:36]} 50. b3 {[%emt 0:02:13]} Rf5 {[%emt 0:00:41]
} 51. Rc3 {[%emt 0:01:40]} Rd5 {[%emt 0:01:49]} 52. Rc4 {[%emt 0:00:38]} f5 {
[%emt 0:01:18]} 53. b4 {[%emt 0:01:24]} a4 {[%emt 0:01:06]} 54. b5 {[%emt 0:00:
26]} a3 {[%emt 0:00:55]} 55. Ra4 {[%emt 0:00:04]} Rxb5 {[%emt 0:00:15]} 56.
Rxa3 {[%emt 0:00:02]} Rb2+ {[%emt 0:00:34]} 57. Kf1 {[%emt 0:00:02]} Rb1+ {
[%emt 0:00:12]} 58. Kf2 {[%emt 0:00:08]} Rh1 {[%emt 0:00:10]} 59. h3 {[%emt 0:
01:39]} gxh3 {[%emt 0:00:26]} 60. gxh3 {[%emt 0:01:12]} Rb1 {[%emt 0:02:51]}
61. Ra4 {[%emt 0:15:37]} Rb2+ {[%emt 0:18:05]} 62. Kg3 {[%emt 0:00:13]} Rb3+ {
[%emt 0:00:08]} 63. Kg2 {[%emt 0:00:04]} f4 {[%emt 0:00:34]} 64. Ra8 {[%emt 0:
01:24]} Rg3+ {[%emt 0:02:25]} 65. Kh2 {[%emt 0:00:03]} Re3 {[%emt 0:00:11]} 66.
Kg2 {[%emt 0:00:22]} Kh6 {[%emt 0:01:15]} 67. Ra5 {[%emt 0:00:23]} g5 {[%emt 0:
00:40]} 68. Ra6+ {[%emt 0:00:37]} Kh5 {[%emt 0:00:14]} 69. Ra8 {[%emt 0:00:09]}
Kg6 {[%emt 0:00:42]} 70. Ra5 {[%emt 0:00:29]} Re2+ {[%emt 0:00:29]} 71. Kg1 {
[%emt 0:02:05]} Kh5 {[%emt 0:00:10]} 72. Ra8 {[%emt 0:00:42]} Kh4 {[%emt 0:00:
23]} 73. Rg8 {[%emt 0:00:12]} Re3 {[%emt 0:00:23]} 74. Rh8+ {[%emt 0:00:11]}
Kg3 {[%emt 0:00:04]} 75. Kf1 {[%emt 0:00:03]} Ra3 {[%emt 0:00:46]} 76. Rg8 {
[%emt 0:00:42]} Ra1+ {[%emt 0:00:26]} 77. Ke2 {[%emt 0:00:04]} f3+ {[%emt 0:00:
05]} 0-1

[Event "FIDE Womens Grand Swiss 2021"]
[Site "Riga"]
[Date "2021.11.07"]
[Round "11.11"]
[White "Sukandar, Irine Kharisma"]
[Black "Girya, Olga"]
[Result "0-1"]
[ECO "A46"]
[WhiteElo "2406"]
[BlackElo "2410"]
[Annotator "NA RC"]
[PlyCount "124"]
[EventDate "2021.10.27"]
[EventType "swiss"]
[EventCountry "LAT"]
[Tiebreak "Cut1 Buchholz+Sonneborn-Berger (Swiss)"]
[SourceTitle "playchess.com"]
[Source "ChessBase"]
[SourceQuality "1"]
[TimeControl "40/6000+30:20/3000+30:900+30"]

1. d4 {[%emt 0:10:25]} Nf6 {[%emt 0:10:10]} 2. Bf4 {[%emt 0:00:07]} e6 {
[%emt 0:00:12]} 3. e3 {[%emt 0:00:16]} c5 {[%emt 0:00:12]} 4. Nf3 {[%emt 0:00:
43]} cxd4 {[%emt 0:00:20]} 5. exd4 {[%emt 0:00:18]} b6 {[%emt 0:00:21]} 6. Nbd2
{[%emt 0:03:52]} Be7 {[%emt 0:00:07]} 7. Bd3 {[%emt 0:01:27]} O-O {[%emt 0:00:
54]} 8. c3 {[%emt 0:06:48]} Ba6 {[%emt 0:00:32]} 9. Ne5 {[%emt 0:02:49]} Bxd3 {
[%emt 0:03:08]} 10. Nxd3 {[%emt 0:00:12]} Nc6 {[%emt 0:01:38]} 11. Qf3 {
[%emt 0:05:50]} Rc8 {[%emt 0:05:09]} 12. h4 {[%emt 0:01:07]} b5 {[%emt 0:04:14]
} 13. a3 {[%emt 0:01:17]} a5 {[%emt 0:10:22]} 14. Be3 {[%emt 0:07:39]} b4 {
[%emt 0:19:11]} 15. axb4 {[%emt 0:07:10]} axb4 {[%emt 0:00:01]} 16. c4 {
[%emt 0:03:12]} d5 {[%emt 0:06:32]} 17. c5 {[%emt 0:01:50]} h5 {[%emt 0:00:14]}
18. O-O {[%emt 0:06:41]} Ng4 {[%emt 0:01:04]} 19. g3 {[%emt 0:00:40]} Bf6 {
[%emt 0:07:16]} 20. Nb3 {[%emt 0:01:19]} e5 {[%emt 0:01:31]} 21. dxe5 {[%emt 0:
01:16]} Ncxe5 {[%emt 0:00:03]} 22. Nxe5 {[%emt 0:00:57]} Bxe5 {[%emt 0:00:05]}
23. Bg5 {[%emt 0:11:34]} Qd7 {[%emt 0:06:22]} 24. Rfd1 {[%emt 0:01:22]} Bxb2 {
[%emt 0:02:52]} 25. Ra2 {[%emt 0:00:45]} Bc3 {[%emt 0:02:27]} 26. Qxd5 {
[%emt 0:03:02]} Qxd5 {[%emt 0:03:28]} 27. Rxd5 {[%emt 0:00:02]} Rfe8 {[%emt 0:
01:04]} 28. Kg2 {[%emt 0:05:30]} Re1 {[%emt 0:07:02]} 29. Nc1 {[%emt 0:15:01]}
Nf6 {[%emt 0:10:25]} 30. Rf5 {[%emt 0:01:53]} Ne4 {[%emt 0:01:06]} 31. Be3 {
[%emt 0:03:51]} Nxc5 {[%emt 0:01:28]} 32. Ra7 {[%emt 0:05:05]} b3 {[%emt 0:03:
18]} 33. Nxb3 {[%emt 0:00:11]} Nxb3 {[%emt 0:00:04]} 34. Rfxf7 {[%emt 0:00:09]}
Ra1 {[%emt 0:00:34]} 35. Rab7 {[%emt 0:02:30]} Na5 {[%emt 0:00:24]} 36. Rfc7 {
[%emt 0:01:05]} Rxc7 {[%emt 0:01:40]} 37. Rxc7 {[%emt 0:00:02]} Bf6 {[%emt 0:
00:22]} 38. Rc5 {[%emt 0:00:14]} g6 {[%emt 0:00:47]} 39. Rc7 {[%emt 0:01:10]}
Rb1 {[%emt 0:01:27]} 40. Kf3 {[%emt 0:00:33]} Rb5 {[%emt 0:00:56]} 41. Ke4 {
[%emt 0:24:04]} Nb7 {[%emt 0:22:43]} 42. Rc6 {[%emt 0:01:29]} Kf7 {[%emt 0:01:
21]} 43. Kf3 {[%emt 0:01:37]} Nd8 {[%emt 0:01:50]} 44. Rc7+ {[%emt 0:00:29]}
Ke6 {[%emt 0:00:01]} 45. Kg2 {[%emt 0:01:11]} Kf5 {[%emt 0:01:28]} 46. Kh3 {
[%emt 0:00:37]} Rd5 {[%emt 0:03:59]} 47. Rc4 {[%emt 0:01:36]} Ne6 {[%emt 0:01:
59]} 48. Kg2 {[%emt 0:03:28]} Rd3 {[%emt 0:01:18]} 49. Bh6 {[%emt 0:00:48]} Bd4
{[%emt 0:01:58]} 50. Rc6 {[%emt 0:01:53]} Rc3 {[%emt 0:01:11]} 51. Rxc3 {
[%emt 0:00:39]} Bxc3 {[%emt 0:00:02]} 52. f3 {[%emt 0:00:53]} Nd4 {[%emt 0:04:
44]} 53. Bg7 {[%emt 0:01:13]} Ne2 {[%emt 0:00:28]} 54. Bf8 {[%emt 0:04:06]} Be5
{[%emt 0:01:16]} 55. f4 {[%emt 0:03:23]} Bd4 {[%emt 0:00:22]} 56. Kf3 {[%emt 0:
00:18]} Ng1+ {[%emt 0:00:08]} 57. Kg2 {[%emt 0:00:09]} Kg4 {[%emt 0:00:06]} 58.
Bd6 {[%emt 0:00:11]} Ne2 {[%emt 0:00:20]} 59. f5 {[%emt 0:00:13]} gxf5 {
[%emt 0:00:37]} 60. Bc7 {[%emt 0:00:26]} Nc3 {[%emt 0:00:09]} 61. Bb8 {[%emt 0:
15:25]} Ne4 {[%emt 0:15:09]} 62. Bc7 {[%emt 0:00:25]} Bc5 {[%emt 0:00:07]} 0-1